[Event "*** Titled Tuesday Blitz"]
[Site "Chess.com"]
[Date "2021.03.02"]
[Round "9"]
[White "ChessFighter1975"]
[Black "turayev_shahruh17"]
[Result "1-0"]
[WhiteElo "2365"]
[BlackElo "2464"]
[TimeControl "180+1"]
[EndTime "11:45:16 PST"]
[Termination "ChessFighter1975 won by resignation"]

1. d4 {[%clk 0:03:00.9]} 1... f5 {[%clk 0:02:57.8]} 2. g3 {[%clk 0:02:59.9]}
2... Nf6 {[%clk 0:02:57.1]} 3. Bg2 {[%clk 0:03:00.4]} 3... g6 {[%clk 0:02:56.8]}
4. Nf3 {[%clk 0:03:01]} 4... Bg7 {[%clk 0:02:56.5]} 5. O-O {[%clk 0:03:01.7]}
5... O-O {[%clk 0:02:55.8]} 6. b3 {[%clk 0:03:02.3]} 6... d5 {[%clk 0:02:51.8]}
7. c4 {[%clk 0:02:52.3]} 7... e6 {[%clk 0:02:46.8]} 8. Ba3 {[%clk 0:02:48.7]}
8... Re8 {[%clk 0:02:44.8]} 9. Ne5 {[%clk 0:02:47.7]} 9... c6 {[%clk 0:02:33]}
10. Nc3 {[%clk 0:02:37.1]} 10... Nbd7 {[%clk 0:02:31.5]} 11. f4 {[%clk
0:02:30.3]} 11... Nxe5 {[%clk 0:02:28.3]} 12. fxe5 {[%clk 0:02:30.2]} 12... Ng4
{[%clk 0:02:29.2]} 13. Qd3 {[%clk 0:02:16.3]} 13... b6 {[%clk 0:02:22.5]} 14. h3
{[%clk 0:02:14.9]} 14... Nh6 {[%clk 0:02:21]} 15. cxd5 {[%clk 0:02:12.7]} 15...
exd5 {[%clk 0:02:19.4]} 16. Rac1 {[%clk 0:02:00]} 16... a5 {[%clk 0:02:12.8]}
17. Qd2 {[%clk 0:01:57.7]} 17... Nf7 {[%clk 0:02:03]} 18. Na4 {[%clk 0:01:55.9]}
18... Bh6 {[%clk 0:02:00.3]} 19. e3 {[%clk 0:01:56.1]} 19... Qg5 {[%clk
0:02:00]} 20. Rf3 {[%clk 0:01:53.1]} 20... Nxe5 {[%clk 0:01:49.1]} 21. dxe5
{[%clk 0:01:50.3]} 21... Rxe5 {[%clk 0:01:50]} 22. Re1 {[%clk 0:01:33.5]} 22...
Rb8 {[%clk 0:01:45.3]} 23. Bd6 {[%clk 0:01:30.5]} 23... Re4 {[%clk 0:01:37.7]}
24. Bxb8 {[%clk 0:01:27.7]} 24... d4 {[%clk 0:01:37.7]} 25. Bf4 {[%clk
0:01:26.6]} 25... Qh5 {[%clk 0:01:38.2]} 26. Bxh6 {[%clk 0:01:21.6]} 26... Qxh6
{[%clk 0:01:39.1]} 27. Qd3 {[%clk 0:01:17.8]} 27... c5 {[%clk 0:01:33.5]} 28.
Nxb6 {[%clk 0:01:16.2]} 28... Be6 {[%clk 0:01:30]} 29. Qb5 {[%clk 0:01:09.5]}
29... Re5 {[%clk 0:01:26]} 30. Qe8+ {[%clk 0:01:06.4]} 30... Kg7 {[%clk
0:01:25.8]} 31. Qe7+ {[%clk 0:01:05.2]} 31... Kg8 {[%clk 0:01:24.8]} 32. Nd7
{[%clk 0:01:00.3]} 32... Re4 {[%clk 0:01:24.5]} 33. Nf6+ {[%clk 0:00:59.3]}
33... Kh8 {[%clk 0:01:25.4]} 34. Nxe4 {[%clk 0:00:59.1]} 34... fxe4 {[%clk
0:01:25.7]} 35. Qf6+ {[%clk 0:00:59.1]} 1-0

[Event "*** Titled Tuesday Blitz"]
[Site "Chess.com"]
[Date "2021.03.02"]
[Round "9"]
[White "chescomhuynya"]
[Black "Piccadilly123"]
[Result "1-0"]
[WhiteElo "2551"]
[BlackElo "2257"]
[TimeControl "180+1"]
[EndTime "11:45:18 PST"]
[Termination "chescomhuynya won by checkmate"]

1. d4 {[%clk 0:02:56.9]} 1... d5 {[%clk 0:02:59.7]} 2. c4 {[%clk 0:02:57.1]}
2... e6 {[%clk 0:03:00]} 3. g3 {[%clk 0:02:57.4]} 3... Be7 {[%clk 0:03:00.3]} 4.
Nf3 {[%clk 0:02:56.7]} 4... Nf6 {[%clk 0:03:00.7]} 5. Bg2 {[%clk 0:02:57.2]}
5... O-O {[%clk 0:03:01.2]} 6. Nc3 {[%clk 0:02:58.1]} 6... b6 {[%clk 0:03:01.5]}
7. cxd5 {[%clk 0:02:57.4]} 7... exd5 {[%clk 0:03:02.4]} 8. O-O {[%clk
0:02:58.1]} 8... Bb7 {[%clk 0:03:02.3]} 9. Ne5 {[%clk 0:02:58]} 9... Nbd7 {[%clk
0:02:56.2]} 10. Qa4 {[%clk 0:02:57.8]} 10... c5 {[%clk 0:02:37.2]} 11. Nxd7
{[%clk 0:02:52.9]} 11... Nxd7 {[%clk 0:02:33.2]} 12. Nxd5 {[%clk 0:02:45.3]}
12... cxd4 {[%clk 0:02:13.3]} 13. Nxe7+ {[%clk 0:02:44.8]} 13... Qxe7 {[%clk
0:02:14.2]} 14. Bxb7 {[%clk 0:02:45.3]} 14... Nc5 {[%clk 0:02:14.5]} 15. Qxd4
{[%clk 0:02:40.8]} 15... Nxb7 {[%clk 0:02:04]} 16. Be3 {[%clk 0:02:33.4]} 16...
Rfd8 {[%clk 0:02:00.1]} 17. Qa4 {[%clk 0:02:32]} 17... Nc5 {[%clk 0:01:56.4]}
18. Qa3 {[%clk 0:02:30.6]} 18... Qe5 {[%clk 0:01:40.8]} 19. Bxc5 {[%clk
0:02:29.2]} 19... bxc5 {[%clk 0:01:41.3]} 20. e3 {[%clk 0:02:28]} 20... Rd2
{[%clk 0:01:40.2]} 21. b3 {[%clk 0:02:24.7]} 21... h5 {[%clk 0:01:26.2]} 22.
Rac1 {[%clk 0:02:22.4]} 22... Rc8 {[%clk 0:01:18]} 23. h4 {[%clk 0:02:15.5]}
23... Rc7 {[%clk 0:00:59.7]} 24. Rfd1 {[%clk 0:02:08.9]} 24... Rcd7 {[%clk
0:00:39.7]} 25. Rxd2 {[%clk 0:02:05.4]} 25... Rxd2 {[%clk 0:00:40.6]} 26. Qxc5
{[%clk 0:02:01.6]} 26... Qb2 {[%clk 0:00:40.3]} 27. Qc8+ {[%clk 0:01:59.6]}
27... Kh7 {[%clk 0:00:39.2]} 28. Qf5+ {[%clk 0:02:00.3]} 28... Kh6 {[%clk
0:00:33.3]} 29. Rc6+ {[%clk 0:01:56.9]} 29... f6 {[%clk 0:00:27]} 30. Rc8 {[%clk
0:01:51.3]} 30... g6 {[%clk 0:00:20.9]} 31. Qf4+ {[%clk 0:01:50.3]} 31... Kg7
{[%clk 0:00:18.9]} 32. Qc7+ {[%clk 0:01:49.3]} 32... Kh6 {[%clk 0:00:17.1]} 33.
Rh8# {[%clk 0:01:49.4]} 1-0

[Event "*** Titled Tuesday Blitz"]
[Site "Chess.com"]
[Date "2021.03.02"]
[Round "9"]
[White "CSB7"]
[Black "ChainsOfFantasia"]
[Result "1-0"]
[WhiteElo "2586"]
[BlackElo "2458"]
[TimeControl "180+1"]
[EndTime "11:45:22 PST"]
[Termination "CSB7 won by checkmate"]

1. e4 {[%clk 0:03:00.9]} 1... e6 {[%clk 0:02:58.6]} 2. d4 {[%clk 0:02:58.6]}
2... d5 {[%clk 0:02:59]} 3. Nc3 {[%clk 0:02:55.1]} 3... Nf6 {[%clk 0:02:58.6]}
4. e5 {[%clk 0:02:54.5]} 4... Nfd7 {[%clk 0:02:58.9]} 5. Nce2 {[%clk 0:02:54.4]}
5... c5 {[%clk 0:02:58.1]} 6. c3 {[%clk 0:02:54.8]} 6... Nc6 {[%clk 0:02:57.9]}
7. Nf3 {[%clk 0:02:53.8]} 7... b5 {[%clk 0:02:58.1]} 8. a3 {[%clk 0:02:52.7]}
8... Rb8 {[%clk 0:02:55.7]} 9. Nf4 {[%clk 0:02:46.2]} 9... b4 {[%clk 0:02:52.2]}
10. axb4 {[%clk 0:02:44.1]} 10... cxb4 {[%clk 0:02:48]} 11. Bd3 {[%clk
0:01:57.9]} 11... bxc3 {[%clk 0:02:36.9]} 12. bxc3 {[%clk 0:01:58.8]} 12... Be7
{[%clk 0:02:23.6]} 13. h4 {[%clk 0:01:55.1]} 13... Na5 {[%clk 0:02:04.6]} 14.
Ng5 {[%clk 0:01:45.8]} 14... Nb3 {[%clk 0:01:45.4]} 15. Ngxe6 {[%clk 0:01:23.2]}
15... Qb6 {[%clk 0:01:12.9]} 16. Nxd5 {[%clk 0:01:21.9]} 16... Nxa1 {[%clk
0:00:52]} 17. Nxg7+ {[%clk 0:01:08.1]} 17... Kf8 {[%clk 0:00:47.1]} 18. Nxb6
{[%clk 0:01:09]} 18... Kxg7 {[%clk 0:00:45.3]} 19. Nxc8 {[%clk 0:01:00.7]} 19...
Rhxc8 {[%clk 0:00:43]} 20. Qg4+ {[%clk 0:01:01]} 20... Kf8 {[%clk 0:00:43.5]}
21. Qxd7 {[%clk 0:01:00.8]} 21... Rxc3 {[%clk 0:00:42.9]} 22. Bh6+ {[%clk
0:01:00.1]} 22... Kg8 {[%clk 0:00:42.3]} 23. Qg4+ {[%clk 0:01:00.7]} 23... Kh8
{[%clk 0:00:41.8]} 24. Qg7# {[%clk 0:01:01]} 1-0

[Event "*** Titled Tuesday Blitz"]
[Site "Chess.com"]
[Date "2021.03.02"]
[Round "9"]
[White "AttilaTurzo"]
[Black "Gabix_94"]
[Result "0-1"]
[WhiteElo "2565"]
[BlackElo "2817"]
[TimeControl "180+1"]
[EndTime "11:45:23 PST"]
[Termination "Gabix_94 won by resignation"]

1. d4 {[%clk 0:03:00.9]} 1... g6 {[%clk 0:02:51.8]} 2. e4 {[%clk 0:02:53.3]}
2... Bg7 {[%clk 0:02:51.2]} 3. c3 {[%clk 0:02:52.3]} 3... d6 {[%clk 0:02:48.3]}
4. Nf3 {[%clk 0:02:51.5]} 4... Nc6 {[%clk 0:02:47]} 5. Bc4 {[%clk 0:02:35.8]}
5... Nf6 {[%clk 0:02:40.5]} 6. Qe2 {[%clk 0:02:24.2]} 6... Bg4 {[%clk
0:02:32.2]} 7. h3 {[%clk 0:02:13.4]} 7... Bxf3 {[%clk 0:02:30.5]} 8. Qxf3 {[%clk
0:02:14.3]} 8... e5 {[%clk 0:02:30.7]} 9. d5 {[%clk 0:02:07.9]} 9... Ne7 {[%clk
0:02:29.7]} 10. Bd3 {[%clk 0:01:57.5]} 10... O-O {[%clk 0:02:28.5]} 11. c4
{[%clk 0:01:51.7]} 11... Nd7 {[%clk 0:02:23.9]} 12. g4 {[%clk 0:01:50.9]} 12...
Nc5 {[%clk 0:02:13]} 13. Bc2 {[%clk 0:01:48.3]} 13... f5 {[%clk 0:02:11.6]} 14.
gxf5 {[%clk 0:01:43.8]} 14... gxf5 {[%clk 0:02:10.8]} 15. exf5 {[%clk
0:01:35.8]} 15... e4 {[%clk 0:02:09.2]} 16. Bxe4 {[%clk 0:01:19.4]} 16... Nxe4
{[%clk 0:02:07.4]} 17. Qxe4 {[%clk 0:01:19.3]} 17... Nxf5 {[%clk 0:02:08.1]} 18.
O-O {[%clk 0:01:03.7]} 18... Kh8 {[%clk 0:01:45.2]} 19. Nc3 {[%clk 0:00:58.9]}
19... Qf6 {[%clk 0:01:38.5]} 20. Be3 {[%clk 0:00:34.8]} 20... Rae8 {[%clk
0:01:36.9]} 21. Qg4 {[%clk 0:00:19.5]} 21... Bh6 {[%clk 0:01:35.8]} 22. Kh1
{[%clk 0:00:17.5]} 22... Rg8 {[%clk 0:01:27.9]} 23. Qf4 {[%clk 0:00:15.1]} 23...
Bxf4 {[%clk 0:01:27.6]} 0-1

[Event "*** Titled Tuesday Blitz"]
[Site "Chess.com"]
[Date "2021.03.02"]
[Round "9"]
[White "zimmm36"]
[Black "ram1zan"]
[Result "0-1"]
[WhiteElo "2350"]
[BlackElo "2922"]
[TimeControl "180+1"]
[EndTime "11:45:30 PST"]
[Termination "ram1zan won by resignation"]

1. d4 {[%clk 0:03:00.9]} 1... d5 {[%clk 0:02:59.8]} 2. c4 {[%clk 0:03:00.7]}
2... e6 {[%clk 0:02:56.8]} 3. Nf3 {[%clk 0:03:00.7]} 3... Nf6 {[%clk 0:02:56]}
4. g3 {[%clk 0:03:00.9]} 4... dxc4 {[%clk 0:02:55.7]} 5. Bg2 {[%clk 0:03:00.2]}
5... a6 {[%clk 0:02:55.5]} 6. O-O {[%clk 0:02:57.7]} 6... Nc6 {[%clk 0:02:55.5]}
7. e3 {[%clk 0:02:55.3]} 7... Rb8 {[%clk 0:02:54.1]} 8. Nfd2 {[%clk 0:02:55.2]}
8... e5 {[%clk 0:02:53.7]} 9. Bxc6+ {[%clk 0:02:55.6]} 9... bxc6 {[%clk
0:02:54.6]} 10. dxe5 {[%clk 0:02:56]} 10... Ng4 {[%clk 0:02:53.5]} 11. Nxc4
{[%clk 0:02:56]} 11... Be6 {[%clk 0:02:51.5]} 12. Nbd2 {[%clk 0:02:54.9]} 12...
Bb4 {[%clk 0:02:50]} 13. Qc2 {[%clk 0:02:48]} 13... h5 {[%clk 0:02:43]} 14. b3
{[%clk 0:02:44.7]} 14... h4 {[%clk 0:02:35.3]} 15. Qe4 {[%clk 0:02:20.6]} 15...
hxg3 {[%clk 0:02:29.2]} 16. fxg3 {[%clk 0:01:55.8]} 16... Rxh2 {[%clk
0:02:14.6]} 17. Nf3 {[%clk 0:01:42.7]} 17... Rh3 {[%clk 0:02:10.5]} 18. Kg2
{[%clk 0:01:34.2]} 18... Qd5 {[%clk 0:02:01.7]} 19. Qxd5 {[%clk 0:00:40.9]}
19... cxd5 {[%clk 0:02:02.6]} 20. Nb2 {[%clk 0:00:39.6]} 20... Rh6 {[%clk
0:01:47.9]} 21. Nd3 {[%clk 0:00:38.1]} 21... Be7 {[%clk 0:01:47.7]} 22. Bd2
{[%clk 0:00:35.1]} 22... Kd7 {[%clk 0:01:47.3]} 23. Rac1 {[%clk 0:00:34]} 23...
Rbh8 {[%clk 0:01:47.6]} 24. Rh1 {[%clk 0:00:30.1]} 24... Bf5 {[%clk 0:01:47.7]}
25. Rxh6 {[%clk 0:00:29.7]} 25... Rxh6 {[%clk 0:01:48.6]} 26. Nf2 {[%clk
0:00:26.3]} 26... Nxf2 {[%clk 0:01:46.1]} 27. Kxf2 {[%clk 0:00:27.2]} 27... Be4
{[%clk 0:01:47]} 28. Bc3 {[%clk 0:00:21.8]} 28... c5 {[%clk 0:01:46.3]} 29. b4
{[%clk 0:00:18.1]} 29... cxb4 {[%clk 0:01:44.2]} 30. Bd4 {[%clk 0:00:18]} 30...
Rc6 {[%clk 0:01:44.3]} 31. Rxc6 {[%clk 0:00:17.1]} 31... Kxc6 {[%clk 0:01:45.2]}
32. Ng5 {[%clk 0:00:17.4]} 32... Bxg5 {[%clk 0:01:44.5]} 0-1

[Event "*** Titled Tuesday Blitz"]
[Site "Chess.com"]
[Date "2021.03.02"]
[Round "9"]
[White "Trickster_Pony"]
[Black "mr65"]
[Result "1/2-1/2"]
[WhiteElo "1460"]
[BlackElo "2075"]
[TimeControl "180+1"]
[EndTime "11:45:34 PST"]
[Termination "Game drawn by repetition"]

1. c4 {[%clk 0:03:00.9]} 1... Nf6 {[%clk 0:02:57.9]} 2. g3 {[%clk 0:02:57.8]}
2... g6 {[%clk 0:02:58]} 3. Bg2 {[%clk 0:02:57.1]} 3... Bg7 {[%clk 0:02:58.3]}
4. Nc3 {[%clk 0:02:56.1]} 4... O-O {[%clk 0:02:58.2]} 5. Nf3 {[%clk 0:02:55.6]}
5... d6 {[%clk 0:02:58.3]} 6. O-O {[%clk 0:02:54.9]} 6... e5 {[%clk 0:02:58.4]}
7. d4 {[%clk 0:02:52.8]} 7... exd4 {[%clk 0:02:57.8]} 8. Nxd4 {[%clk 0:02:52.3]}
8... c6 {[%clk 0:02:57.8]} 9. h3 {[%clk 0:02:42.8]} 9... Be6 {[%clk 0:02:55.2]}
10. Nxe6 {[%clk 0:02:37.4]} 10... fxe6 {[%clk 0:02:54.5]} 11. Bg5 {[%clk
0:02:30]} 11... h6 {[%clk 0:02:51.9]} 12. Be3 {[%clk 0:02:27.2]} 12... d5 {[%clk
0:02:49.3]} 13. cxd5 {[%clk 0:02:02.9]} 13... exd5 {[%clk 0:02:48.3]} 14. Qd3
{[%clk 0:01:53.9]} 14... Qe8 {[%clk 0:02:41.6]} 15. Bc5 {[%clk 0:01:48.3]} 15...
Rf7 {[%clk 0:02:40.2]} 16. Rfe1 {[%clk 0:01:39.9]} 16... Nbd7 {[%clk 0:02:38.9]}
17. Ba3 {[%clk 0:01:33.3]} 17... Rd8 {[%clk 0:02:30.3]} 18. Qc2 {[%clk
0:01:27.8]} 18... Ne5 {[%clk 0:02:25]} 19. e4 {[%clk 0:01:17.4]} 19... d4 {[%clk
0:02:20.4]} 20. f4 {[%clk 0:00:58.9]} 20... dxc3 {[%clk 0:02:16.4]} 21. fxe5
{[%clk 0:00:57.9]} 21... Qxe5 {[%clk 0:02:15.5]} 22. Qxc3 {[%clk 0:00:56.8]}
22... Qxc3 {[%clk 0:02:12.2]} 23. bxc3 {[%clk 0:00:57.7]} 23... Nh5 {[%clk
0:02:01.5]} 24. g4 {[%clk 0:00:54.9]} 24... Nf4 {[%clk 0:01:59.8]} 25. e5 {[%clk
0:00:53.3]} 25... Nxg2 {[%clk 0:01:52.4]} 26. Kxg2 {[%clk 0:00:53]} 26... Rd2+
{[%clk 0:01:51.9]} 27. Kg1 {[%clk 0:00:44.6]} 27... Rff2 {[%clk 0:01:48.3]} 28.
Bc5 {[%clk 0:00:20.8]} 28... Rg2+ {[%clk 0:01:44]} 29. Kf1 {[%clk 0:00:19.9]}
29... Rg3 {[%clk 0:01:39.3]} 30. e6 {[%clk 0:00:17.1]} 30... Rf3+ {[%clk
0:01:37.9]} 31. Kg1 {[%clk 0:00:15.6]} 31... Rg3+ {[%clk 0:01:37.6]} 32. Kf1
{[%clk 0:00:15.4]} 32... Rf3+ {[%clk 0:01:37.2]} 33. Kg1 {[%clk 0:00:15.6]}
33... Rg3+ {[%clk 0:01:36.8]} 34. Kf1 {[%clk 0:00:15.9]} 1/2-1/2

[Event "*** Titled Tuesday Blitz"]
[Site "Chess.com"]
[Date "2021.03.02"]
[Round "9"]
[White "Ekose"]
[Black "indfraeng"]
[Result "1-0"]
[WhiteElo "2529"]
[BlackElo "2394"]
[TimeControl "180+1"]
[EndTime "11:45:38 PST"]
[Termination "Ekose won by resignation"]

1. Nf3 {[%clk 0:02:55]} 1... Nf6 {[%clk 0:02:59.6]} 2. d4 {[%clk 0:02:52.8]}
2... d5 {[%clk 0:02:59.2]} 3. e3 {[%clk 0:02:50.6]} 3... c5 {[%clk 0:02:58.9]}
4. c3 {[%clk 0:02:49.9]} 4... Nc6 {[%clk 0:02:58.6]} 5. Nbd2 {[%clk 0:02:49.1]}
5... Bf5 {[%clk 0:02:55]} 6. Bb5 {[%clk 0:02:48.2]} 6... Qb6 {[%clk 0:02:49.1]}
7. Qa4 {[%clk 0:02:45.9]} 7... Nd7 {[%clk 0:02:41.7]} 8. O-O {[%clk 0:02:40.2]}
8... e6 {[%clk 0:02:40.7]} 9. Re1 {[%clk 0:02:20.2]} 9... Bd6 {[%clk 0:02:30.2]}
10. e4 {[%clk 0:02:18]} 10... dxe4 {[%clk 0:02:30]} 11. Nxe4 {[%clk 0:02:18.1]}
11... Bxe4 {[%clk 0:02:30.4]} 12. Rxe4 {[%clk 0:02:19]} 12... O-O {[%clk
0:02:27.3]} 13. Bxc6 {[%clk 0:02:15.9]} 13... bxc6 {[%clk 0:02:28.2]} 14. Qc2
{[%clk 0:02:09.8]} 14... Nf6 {[%clk 0:02:27.4]} 15. Rh4 {[%clk 0:02:08.7]} 15...
cxd4 {[%clk 0:02:24.5]} 16. Bg5 {[%clk 0:02:03.7]} 16... d3 {[%clk 0:02:14.2]}
17. Qxd3 {[%clk 0:01:59.2]} 17... Qxb2 {[%clk 0:02:13.1]} 18. Rb1 {[%clk
0:01:50]} 18... Rad8 {[%clk 0:02:04.2]} 19. Nd4 {[%clk 0:01:27.7]} 19... Qxa2
{[%clk 0:01:54.4]} 20. Bxf6 {[%clk 0:01:22.4]} 20... g6 {[%clk 0:01:54.8]} 21.
Rxh7 {[%clk 0:00:59.9]} 21... Qxb1+ {[%clk 0:01:39.9]} 22. Qxb1 {[%clk
0:00:58.6]} 22... Kxh7 {[%clk 0:01:40.3]} 23. Qd3 {[%clk 0:00:55.3]} 23... Bf4
{[%clk 0:01:36.8]} 24. Qh3+ {[%clk 0:00:47.3]} 24... Bh6 {[%clk 0:01:36.8]} 25.
Bg5 {[%clk 0:00:46.5]} 25... Rb8 {[%clk 0:01:26.1]} 26. Qxh6+ {[%clk 0:00:43.9]}
26... Kg8 {[%clk 0:01:26.2]} 27. h4 {[%clk 0:00:41.9]} 27... Rb1+ {[%clk
0:01:19.1]} 28. Kh2 {[%clk 0:00:40.8]} 28... f6 {[%clk 0:01:14.4]} 29. Qxg6+
{[%clk 0:00:40]} 29... Kh8 {[%clk 0:01:14.2]} 30. Bxf6+ {[%clk 0:00:37.5]} 30...
Rxf6 {[%clk 0:01:15.1]} 31. Qxf6+ {[%clk 0:00:36.9]} 31... Kg8 {[%clk 0:01:16]}
32. Qg6+ {[%clk 0:00:37]} 32... Kf8 {[%clk 0:01:15.8]} 33. Qxb1 {[%clk
0:00:36.1]} 33... Ke7 {[%clk 0:01:16.7]} 34. Qe4 {[%clk 0:00:32.9]} 34... Kd6
{[%clk 0:01:17.6]} 1-0

[Event "*** Titled Tuesday Blitz"]
[Site "Chess.com"]
[Date "2021.03.02"]
[Round "9"]
[White "Susal_De_Silva"]
[Black "JoakimVonAnd"]
[Result "1-0"]
[WhiteElo "2654"]
[BlackElo "2505"]
[TimeControl "180+1"]
[EndTime "11:45:39 PST"]
[Termination "Susal_De_Silva won by resignation"]

1. e4 {[%clk 0:03:00.9]} 1... c6 {[%clk 0:02:57.9]} 2. d4 {[%clk 0:03:00.7]}
2... d5 {[%clk 0:02:58.8]} 3. Nc3 {[%clk 0:03:01.4]} 3... dxe4 {[%clk
0:02:57.1]} 4. Nxe4 {[%clk 0:03:02.3]} 4... Bf5 {[%clk 0:02:57.5]} 5. Ng3 {[%clk
0:03:02.3]} 5... Bg6 {[%clk 0:02:57.6]} 6. h4 {[%clk 0:03:03.2]} 6... h6 {[%clk
0:02:55.8]} 7. Nf3 {[%clk 0:03:04.1]} 7... Nf6 {[%clk 0:02:54.1]} 8. h5 {[%clk
0:03:05]} 8... Bh7 {[%clk 0:02:48.9]} 9. Bd3 {[%clk 0:03:04.9]} 9... Bxd3 {[%clk
0:02:47]} 10. Qxd3 {[%clk 0:03:05.8]} 10... e6 {[%clk 0:02:46.7]} 11. Bd2 {[%clk
0:03:06]} 11... c5 {[%clk 0:02:46.1]} 12. O-O-O {[%clk 0:03:05.8]} 12... Nc6
{[%clk 0:02:46.4]} 13. Bc3 {[%clk 0:03:04.7]} 13... Qd5 {[%clk 0:02:46.1]} 14.
Ne5 {[%clk 0:03:01.1]} 14... cxd4 {[%clk 0:02:28]} 15. Bxd4 {[%clk 0:02:55.7]}
15... Nxe5 {[%clk 0:02:19.5]} 16. Qe2 {[%clk 0:02:54.8]} 16... Bd6 {[%clk
0:01:50.8]} 17. Rhe1 {[%clk 0:02:50.4]} 17... Qxa2 {[%clk 0:01:18.2]} 18. Qb5+
{[%clk 0:02:34.6]} 18... Ned7 {[%clk 0:01:11.9]} 19. Bxf6 {[%clk 0:02:30.3]}
19... Bf4+ {[%clk 0:01:01.2]} 20. Re3 {[%clk 0:02:29.9]} 20... Bxe3+ {[%clk
0:00:59.6]} 21. fxe3 {[%clk 0:02:30.8]} 21... gxf6 {[%clk 0:00:57.5]} 22. Rxd7
{[%clk 0:02:24.6]} 22... Kf8 {[%clk 0:00:47.6]} 23. Qxb7 {[%clk 0:02:24]} 23...
Qa1+ {[%clk 0:00:38.9]} 24. Kd2 {[%clk 0:02:22.6]} 24... Qa5+ {[%clk 0:00:38.9]}
25. b4 {[%clk 0:02:12]} 25... Qd8 {[%clk 0:00:34.5]} 26. Rxd8+ {[%clk
0:02:09.4]} 26... Rxd8+ {[%clk 0:00:35.4]} 27. Ke2 {[%clk 0:02:09]} 27... Kg7
{[%clk 0:00:35.7]} 28. Ne4 {[%clk 0:02:05.7]} 28... f5 {[%clk 0:00:33.4]} 29.
Nc5 {[%clk 0:02:05.6]} 29... Rd6 {[%clk 0:00:33.5]} 30. Qxa7 {[%clk 0:02:02.4]}
30... Rhd8 {[%clk 0:00:33.4]} 31. Nd3 {[%clk 0:02:01.7]} 31... R8d7 {[%clk
0:00:31.3]} 32. Qc5 {[%clk 0:02:01.4]} 32... Rd5 {[%clk 0:00:30.9]} 33. Qc3+
{[%clk 0:02:01.1]} 33... Kh7 {[%clk 0:00:31.4]} 34. Qb3 {[%clk 0:01:57.7]} 34...
f4 {[%clk 0:00:26.1]} 35. Nxf4 {[%clk 0:01:54.7]} 35... Rd2+ {[%clk 0:00:25.6]}
36. Kf3 {[%clk 0:01:55.4]} 36... e5 {[%clk 0:00:24.7]} 37. Nd3 {[%clk
0:01:54.9]} 37... Re7 {[%clk 0:00:21.5]} 38. Nxe5 {[%clk 0:01:53.1]} 38... Rd6
{[%clk 0:00:17.9]} 39. Nd3 {[%clk 0:01:52.8]} 39... Rf6+ {[%clk 0:00:17.8]} 40.
Nf4 {[%clk 0:01:53.3]} 40... Rfe6 {[%clk 0:00:18.5]} 41. Nxe6 {[%clk 0:01:53.1]}
1-0

[Event "*** Titled Tuesday Blitz"]
[Site "Chess.com"]
[Date "2021.03.02"]
[Round "9"]
[White "Na_binci"]
[Black "Nayemhaque22"]
[Result "0-1"]
[WhiteElo "2158"]
[BlackElo "2314"]
[TimeControl "180+1"]
[EndTime "11:45:45 PST"]
[Termination "Nayemhaque22 won by checkmate"]

1. d4 {[%clk 0:03:00.9]} 1... d5 {[%clk 0:02:59.8]} 2. c4 {[%clk 0:02:59.8]}
2... c6 {[%clk 0:02:59.4]} 3. Nc3 {[%clk 0:02:58.1]} 3... Nf6 {[%clk 0:02:59.5]}
4. e3 {[%clk 0:02:58.4]} 4... e6 {[%clk 0:02:58.6]} 5. Nf3 {[%clk 0:02:58.6]}
5... Nbd7 {[%clk 0:02:58.1]} 6. Bd3 {[%clk 0:02:59.1]} 6... dxc4 {[%clk
0:02:56]} 7. Bxc4 {[%clk 0:03:00]} 7... b5 {[%clk 0:02:55.6]} 8. Bd3 {[%clk
0:03:00.2]} 8... Bd6 {[%clk 0:02:53.8]} 9. e4 {[%clk 0:02:54.2]} 9... e5 {[%clk
0:02:52.6]} 10. dxe5 {[%clk 0:02:45.5]} 10... Nxe5 {[%clk 0:02:52.5]} 11. Nxe5
{[%clk 0:02:45.8]} 11... Bxe5 {[%clk 0:02:53.4]} 12. O-O {[%clk 0:02:41.1]}
12... O-O {[%clk 0:02:51.8]} 13. Qe2 {[%clk 0:02:34.2]} 13... Re8 {[%clk
0:02:47.4]} 14. Rd1 {[%clk 0:02:26.7]} 14... Qc7 {[%clk 0:02:46.9]} 15. g3
{[%clk 0:02:25]} 15... Bf5 {[%clk 0:02:45.2]} 16. f3 {[%clk 0:02:11.3]} 16...
Be6 {[%clk 0:02:36.4]} 17. Be3 {[%clk 0:02:10.6]} 17... b4 {[%clk 0:02:28.1]}
18. Na4 {[%clk 0:02:07]} 18... b3 {[%clk 0:02:26.2]} 19. a3 {[%clk 0:02:02.1]}
19... Rad8 {[%clk 0:02:25.5]} 20. Nc5 {[%clk 0:01:57.1]} 20... h5 {[%clk
0:02:21.6]} 21. Nxe6 {[%clk 0:01:51.1]} 21... Rxe6 {[%clk 0:02:20.4]} 22. Bc4
{[%clk 0:01:51.4]} 22... Red6 {[%clk 0:02:14.4]} 23. f4 {[%clk 0:01:48]} 23...
Bxb2 {[%clk 0:02:03.9]} 24. Rxd6 {[%clk 0:01:38.7]} 24... Bxa1 {[%clk
0:02:04.2]} 25. Rxd8+ {[%clk 0:01:36.7]} 25... Qxd8 {[%clk 0:02:05]} 26. Bxb3
{[%clk 0:01:36]} 26... Nxe4 {[%clk 0:02:05]} 27. Qc4 {[%clk 0:01:13.6]} 27...
Qe7 {[%clk 0:02:02.7]} 28. Qxc6 {[%clk 0:01:05.3]} 28... Nxg3 {[%clk 0:01:59.8]}
29. Qc8+ {[%clk 0:00:25.9]} 29... Kh7 {[%clk 0:01:58.9]} 30. Qc2+ {[%clk
0:00:26.2]} 30... g6 {[%clk 0:01:56.1]} 31. Bc5 {[%clk 0:00:26.1]} 31... Qe1+
{[%clk 0:01:46.5]} 32. Kg2 {[%clk 0:00:26]} 32... Nf5 {[%clk 0:01:45.3]} 33.
Bxf7 {[%clk 0:00:22.2]} 33... Nh4+ {[%clk 0:01:43.2]} 34. Kh3 {[%clk 0:00:20.3]}
34... Qf1+ {[%clk 0:01:42.3]} 35. Kxh4 {[%clk 0:00:20.1]} 35... Qxf4+ {[%clk
0:01:40.9]} 36. Kh3 {[%clk 0:00:19]} 36... Qf3+ {[%clk 0:01:41]} 37. Kh4 {[%clk
0:00:18.3]} 37... Bf6# {[%clk 0:01:41.8]} 0-1